[Event "European Online Club-ch-B 2021"]
[Site "Online"]
[Date "2021.03.27"]
[Round "2.14"]
[White "Sokolov, Andrei"]
[Black "Mathieu, Phileas"]
[Result "1/2-1/2"]
[ECO "B30"]
[WhiteElo "2516"]
[BlackElo "2240"]
[Annotator "ChessBase"]
[PlyCount "130"]
[EventDate "2021.03.27"]
[EventType "team-tourn"]
[EventCountry "NET"]
[SourceTitle "playchess.com"]
[Source "ChessBase"]
[SourceQuality "1"]
[TimeControl "900+5"]

1. e4 {[%emt 0:00:00]} c5 {[%emt 0:00:05]} 2. Nf3 {[%emt 0:00:04]} Nc6 {[%emt 0:00:08]} 3. Bb5 {[%emt 0:00:04]} e6 {[%emt 0:00:06]} 4. O-O {[%emt 0:00:17]} Nge7 {[%emt 0:00:02]} 5. Re1 {[%emt 0:01:20]} Nd4 {[%emt 0:00:09]} 6. Nxd4 {[%emt 0:01:02]} cxd4 {[%emt 0:00:02]} 7. c3 {[%emt 0:00:08]} a6 {[%emt 0:00:06]} 8. Bf1 {[%emt 0:00:17]} Nc6 {[%emt 0:00:02]} 9. d3 {[%emt 0:00:26]} Bc5 {[%emt 0:00:21]} 10. Nd2 {[%emt 0:01:26]} O-O {[%emt 0:00:43]} 11. Nb3 {[%emt 0:01:04]} Bb6 {[%emt 0:00:51]} 12. cxd4 {[%emt 0:00:04]} Nxd4 {[%emt 0:00:49]} 13. Be3 {[%emt 0:00:05]} Nxb3 {[%emt 0:00:04]} 14. Qxb3 {[%emt 0:00:03]} Bxe3 {[%emt 0:00:14]} 15. Rxe3 {[%emt 0:00:03]} b5 {[%emt 0:00:29]} 16. a4 {[%emt 0:00:39]} Rb8 {[%emt 0:00:13]} 17. a5 {[%emt 0:00:50]} Bb7 {[%emt 0:00:12]} 18. Qb4 {[%emt 0:01:05]} Rc8 {[%emt 0:02:13]} 19. d4 {[%emt 0:00:57]} f5 {[%emt 0:01:25]} 20. e5 {[%emt 0:01:06]} g5 {[%emt 0:02:43]} 21. Rc3 {[%emt 0:00:22]} Rxc3 {[%emt 0:00:06]} 22. bxc3 {[%emt 0:00:28]} Qc7 {[%emt 0:00:49]} 23. c4 {[%emt 0:00:39]} bxc4 {[%emt 0:00:25]} 24. Bxc4 {[%emt 0:00:32]} Rc8 {[%emt 0:00:41]} 25. Bf1 {[%emt 0:00:09]} Ra8 {[%emt 0:01:15]} 26. Qe7 {[%emt 0:01:33]} Qd8 {[%emt 0:00:32]} 27. Qxd8+ {[%emt 0:00:25]} Rxd8 {[%emt 0:00:03]} 28. Rb1 {[%emt 0:00:09]} Be4 {[%emt 0:00:23]} 29. Rb6 {[%emt 0:00:03]} Kf8 {[%emt 0:01:23]} 30. f3 {[%emt 0:00:28]} Bd5 {[%emt 0:00:22]} 31. h4 {[%emt 0:00:40]} h6 {[%emt 0:00:28]} 32. hxg5 {[%emt 0:00:11]} hxg5 {[%emt 0:00:02]} 33. Rxa6 {[%emt 0:00:12]} Ke7 {[%emt 0:00:07]} 34. Rb6 {[%emt 0:00:13]} Rc8 {[%emt 0:00:05]} 35. Rb1 {[%emt 0:00:18]} Rc3 {[%emt 0:00:08]} 36. Ra1 {[%emt 0:00:06]} Rc7 {[%emt 0:00:02]} 37. a6 {[%emt 0:00:04]} Ra7 {[%emt 0:00:01]} 38. Rc1 {[%emt 0:00:10]} Bc6 {[%emt 0:00:05]} 39. Kf2 {[%emt 0:00:04]} Kd8 {[%emt 0:00:07]} 40. Be2 {[%emt 0:00:03]} Kc7 {[%emt 0:00:05]} 41. g4 {[%emt 0:00:17]} fxg4 {[%emt 0:00:11]} 42. fxg4 {[%emt 0:00:02]} Ra8 {[%emt 0:00:01]} 43. Ra1 {[%emt 0:00:17]} Kb6 {[%emt 0:00:03]} 44. Ke3 {[%emt 0:00:02]} Rf8 {[%emt 0:00:06]} 45. Rb1+ {[%emt 0:00:03]} Kc7 {[%emt 0:00:08]} 46. Rf1 {[%emt 0:00:03]} Rxf1 {[%emt 0:00:03]} 47. Bxf1 {[%emt 0:00:02]} Kb6 {[%emt 0:00:02]} 48. Kd2 {[%emt 0:00:03]} Bf3 {[%emt 0:00:07]} 49. Bd3 {[%emt 0:00:07]} Bxg4 {[%emt 0:00:08]} 50. Ke3 {[%emt 0:00:01]} Bd1 {[%emt 0:00:06]} 51. Bb5 {[%emt 0:00:04]} Bb3 {[%emt 0:00:03]} 52. Bxd7 {[%emt 0:00:02]} Kxa6 {[%emt 0:00:02]} 53. Kf3 {[%emt 0:00:02]} Kb6 {[%emt 0:00:01]} 54. Kg4 {[%emt 0:00:03]} Kc7 {[%emt 0:00:03]} 55. Bb5 {[%emt 0:00:02]} Kd8 {[%emt 0:00:03]} 56. Kxg5 {[%emt 0:00:02]} Ke7 {[%emt 0:00:03]} 57. Kf4 {[%emt 0:00:02]} Bc2 {[%emt 0:00:04]} 58. Ke3 {[%emt 0:00:02]} Bf5 {[%emt 0:00:07]} 59. Bd3 {[%emt 0:00:03]} Bg4 {[%emt 0:00:03]} 60. Kd2 {[%emt 0:00:02]} Bh3 {[%emt 0:00:02]} 61. Kc3 {[%emt 0:00:02]} Bg4 {[%emt 0:00:01]} 62. Kb4 {[%emt 0:00:01]} Bh3 {[%emt 0:00:02]} 63. Kc5 {[%emt 0:00:03]} Bg2 {[%emt 0:00:03]} 64. Bb5 {[%emt 0:00:17]} Bf3 {[%emt 0:00:03]} 65. Bc6 {[%emt 0:00:04]} Be2 {[%emt 0:00:02]} 1/2-1/2

[Event "European Online Club-ch-B 2021"]
[Site "Online"]
[Date "2021.03.27"]
[Round "2.15"]
[White "Thomas, Anysia"]
[Black "Riff, Jean-Noel"]
[Result "1/2-1/2"]
[ECO "E10"]
[WhiteElo "2164"]
[BlackElo "2499"]
[Annotator "ChessBase"]
[PlyCount "73"]
[EventDate "2021.03.27"]
[EventType "team-tourn"]
[EventCountry "NET"]
[SourceTitle "playchess.com"]
[Source "ChessBase"]
[SourceQuality "1"]
[TimeControl "900+5"]

1. d4 {[%emt 0:00:00]} Nf6 {[%emt 0:00:03]} 2. c4 {[%emt 0:00:05]} Nc6 {[%emt 0:00:03]} 3. Nf3 {[%emt 0:00:06]} e6 {[%emt 0:00:03]} 4. g3 {[%emt 0:00:42]} Bb4+ {[%emt 0:00:13]} 5. Bd2 {[%emt 0:00:25]} Bxd2+ {[%emt 0:00:07]} 6. Qxd2 {[%emt 0:00:09]} Qe7 {[%emt 0:00:02]} 7. Nc3 {[%emt 0:00:26]} d5 {[%emt 0:00:05]} 8. Bg2 {[%emt 0:00:26]} O-O {[%emt 0:00:04]} 9. O-O {[%emt 0:00:03]} dxc4 {[%emt 0:00:01]} 10. e4 {[%emt 0:02:35]} e5 {[%emt 0:01:00]} 11. Nd5 {[%emt 0:01:49]} Qd6 {[%emt 0:01:03]} 12. Nxe5 {[%emt 0:02:21]} Nxe5 {[%emt 0:00:04]} 13. dxe5 {[%emt 0:00:03]} Qxe5 {[%emt 0:00:01]} 14. Rfe1 {[%emt 0:01:43]} c6 {[%emt 0:00:33]} 15. f4 {[%emt 0:00:47]} Qd6 {[%emt 0:00:03]} 16. Nxf6+ {[%emt 0:01:26]} Qxf6 {[%emt 0:00:04]} 17. e5 {[%emt 0:00:03]} Qe7 {[%emt 0:00:02]} 18. Qd4 {[%emt 0:00:11]} Be6 {[%emt 0:00:03]} 19. Qf2 {[%emt 0:00:22]} Bf5 {[%emt 0:00:08]} 20. Rac1 {[%emt 0:00:05]} Qe6 {[%emt 0:00:15]} 21. Qd4 {[%emt 0:00:16]} b5 {[%emt 0:00:20]} 22. Qc5 {[%emt 0:00:23]} Rac8 {[%emt 0:00:09]} 23. Rcd1 {[%emt 0:00:18]} Bd3 {[%emt 0:00:03]} 24. Rd2 {[%emt 0:01:03]} Rfd8 {[%emt 0:00:10]} 25. Red1 {[%emt 0:00:04]} a5 {[%emt 0:00:06]} 26. Be4 {[%emt 0:00:16]} g6 {[%emt 0:00:32]} 27. Bxd3 {[%emt 0:00:03]} cxd3 {[%emt 0:00:02]} 28. Rxd3 {[%emt 0:00:23]} Rxd3 {[%emt 0:00:03]} 29. Rxd3 {[%emt 0:00:03]} Qxa2 {[%emt 0:00:02]} 30. Rd2 {[%emt 0:00:17]} Qb3 {[%emt 0:00:06]} 31. Qb6 {[%emt 0:00:13]} a4 {[%emt 0:00:06]} 32. Rd8+ {[%emt 0:00:06]} Rxd8 {[%emt 0:00:05]} 33. Qxd8+ {[%emt 0:00:02]} Kg7 {[%emt 0:00:01]} 34. Qf6+ {[%emt 0:00:02]} Kg8 {[%emt 0:00:01]} 35. Qd8+ {[%emt 0:00:02]} Kg7 {[%emt 0:00:01]} 36. Qf6+ {[%emt 0:00:03]} Kg8 {[%emt 0:00:02]} 37. Qd8+ {[%emt 0:00:02]} 1/2-1/2

[Event "European Online Club-ch-B 2021"]
[Site "Online"]
[Date "2021.03.27"]
[Round "2.16"]
[White "Miralles, Gilles"]
[Black "Frantz, Nicolas"]
[Result "1-0"]
[ECO "E11"]
[WhiteElo "2418"]
[BlackElo "2140"]
[Annotator "NA"]
[PlyCount "77"]
[EventDate "2021.03.27"]
[EventType "team-tourn"]
[EventCountry "NET"]
[SourceTitle "playchess.com"]
[Source "ChessBase"]
[SourceQuality "1"]
[TimeControl "900+5"]

1. d4 {[%emt 0:00:00]} Nf6 {[%emt 0:01:09]} 2. c4 {[%emt 0:00:05]} e6 {[%emt 0:00:02]} 3. Nf3 {[%emt 0:00:06]} Bb4+ {[%emt 0:00:01]} 4. Nbd2 {[%emt 0:00:03]} O-O {[%emt 0:00:04]} 5. a3 {[%emt 0:00:11]} Be7 {[%emt 0:00:02]} 6. g3 {[%emt 0:00:21]} d6 {[%emt 0:00:02]} 7. Bg2 {[%emt 0:00:02]} Nc6 {[%emt 0:00:02]} 8. b4 {[%emt 0:00:18]} e5 {[%emt 0:00:02]} 9. d5 {[%emt 0:00:51]} Nb8 {[%emt 0:00:03]} 10. O-O {[%emt 0:00:12]} a5 {[%emt 0:00:01]} 11. Bb2 {[%emt 0:00:10]} Na6 {[%emt 0:00:05]} 12. Nb3 {[%emt 0:00:54]} axb4 {[%emt 0:00:35]} 13. axb4 {[%emt 0:00:03]} Bf5 {[%emt 0:00:02]} 14. Nh4 {[%emt 0:00:49]} Bd7 {[%emt 0:01:20]} 15. b5 {[%emt 0:00:17]} Nc5 {[%emt 0:00:42]} 16. Nxc5 {[%emt 0:00:33]} dxc5 {[%emt 0:00:00]} 17. Bxe5 {[%emt 0:00:08]} Ne8 {[%emt 0:00:05]} 18. Rxa8 {[%emt 0:00:46]} Qxa8 {[%emt 0:00:00]} 19. Qa1 {[%emt 0:00:19]} Qxa1 {[%emt 0:00:11]} 20. Rxa1 {[%emt 0:00:04]} f6 {[%emt 0:00:03]} 21. Bc3 {[%emt 0:00:40]} Nd6 {[%emt 0:00:04]} 22. Ra4 {[%emt 0:01:08]} g5 {[%emt 0:02:31]} 23. Nf3 {[%emt 0:00:07]} Bf5 {[%emt 0:00:03]} 24. Nd2 {[%emt 0:00:17]} Bc2 {[%emt 0:01:05]} 25. Ra2 {[%emt 0:00:47]} Bg6 {[%emt 0:01:22]} 26. e4 {[%emt 0:00:10]} Re8 {[%emt 0:00:08]} 27. f4 {[%emt 0:00:14]} gxf4 {[%emt 0:00:24]} 28. gxf4 {[%emt 0:00:03]} Kf7 {[%emt 0:00:06]} 29. e5 {[%emt 0:00:22]} fxe5 {[%emt 0:00:02]} 30. fxe5 {[%emt 0:00:02]} Nf5 {[%emt 0:00:04]} 31. Ra7 {[%emt 0:00:17]} Bg5 {[%emt 0:00:30]} 32. Rxb7 {[%emt 0:00:18]} Be3+ {[%emt 0:00:05]} 33. Kf1 {[%emt 0:00:18]} Nd4 {[%emt 0:00:13]} 34. Nf3 {[%emt 0:01:55]} Bd3+ {[%emt 0:01:49]} 35. Ke1 {[%emt 0:00:03]} Bxc4 {[%emt 0:00:08]} 36. Rxc7+ {[%emt 0:00:45]} Kg8 {[%emt 0:00:09]} 37. Bxd4 {[%emt 0:00:45]} Bxd4 {[%emt 0:00:17]} 38. Nxd4 {[%emt 0:00:05]} Rxe5+ {[%emt 0:00:03]} 39. Kf2 {[%emt 0:00:33]} 1-0

[Event "European Online Club-ch-B 2021"]
[Site "Online"]
[Date "2021.03.27"]
[Round "3.1"]
[White "Svane, Rasmus"]
[Black "Chlpik, Martin"]
[Result "1-0"]
[ECO "B39"]
[WhiteElo "2613"]
[BlackElo "2199"]
[Annotator "ChessBase"]
[PlyCount "101"]
[EventDate "2021.03.27"]
[EventType "team-tourn"]
[EventCountry "NET"]
[SourceTitle "playchess.com"]
[Source "ChessBase"]
[SourceQuality "1"]
[TimeControl "900+5"]

1. Nf3 {[%emt 0:00:00]} c5 {[%emt 0:00:03]} 2. c4 {[%emt 0:00:04]} g6 {[%emt 0:00:04]} 3. e4 {[%emt 0:00:08]} Bg7 {[%emt 0:00:08]} 4. d4 {[%emt 0:00:01]} cxd4 {[%emt 0:00:02]} 5. Nxd4 {[%emt 0:00:00]} Nc6 {[%emt 0:00:02]} 6. Be3 {[%emt 0:00:05]} Nf6 {[%emt 0:00:43]} 7. Nc3 {[%emt 0:00:03]} Ng4 {[%emt 0:02:14]} 8. Qxg4 {[%emt 0:00:03]} Nxd4 {[%emt 0:00:07]} 9. Qd1 {[%emt 0:00:02]} Nc6 {[%emt 0:00:54]} 10. Qd2 {[%emt 0:00:19]} d6 {[%emt 0:01:21]} 11. Be2 {[%emt 0:00:03]} Be6 {[%emt 0:00:16]} 12. O-O {[%emt 0:00:12]} O-O {[%emt 0:00:05]} 13. Nd5 {[%emt 0:01:29]} Ne5 {[%emt 0:02:51]} 14. Rac1 {[%emt 0:00:18]} Ng4 {[%emt 0:00:39]} 15. Bg5 {[%emt 0:00:52]} Nf6 {[%emt 0:01:01]} 16. Nxf6+ {[%emt 0:00:26]} exf6 {[%emt 0:00:06]} 17. Bf4 {[%emt 0:00:04]} f5 {[%emt 0:00:12]} 18. exf5 {[%emt 0:01:29]} Bxf5 {[%emt 0:00:00]} 19. Bf3 {[%emt 0:02:52]} Qb6 {[%emt 0:00:20]} 20. b3 {[%emt 0:00:07]} Rad8 {[%emt 0:00:10]} 21. Rfe1 {[%emt 0:00:21]} Rd7 {[%emt 0:01:40]} 22. Bd5 {[%emt 0:00:52]} Qd8 {[%emt 0:01:23]} 23. h3 {[%emt 0:00:48]} Qf6 {[%emt 0:00:02]} 24. Re2 {[%emt 0:00:28]} Be6 {[%emt 0:00:03]} 25. Bg5 {[%emt 0:01:24]} Qd4 {[%emt 0:00:40]} 26. Rxe6 {[%emt 0:00:07]} fxe6 {[%emt 0:00:15]} 27. Bxe6+ {[%emt 0:00:00]} Rdf7 {[%emt 0:00:07]} 28. Re1 {[%emt 0:00:40]} Qxd2 {[%emt 0:00:41]} 29. Bxd2 {[%emt 0:00:02]} Bd4 {[%emt 0:00:01]} 30. Be3 {[%emt 0:01:01]} Bxe3 {[%emt 0:00:03]} 31. Rxe3 {[%emt 0:00:00]} Kg7 {[%emt 0:00:01]} 32. Bxf7 {[%emt 0:00:02]} Rxf7 {[%emt 0:00:02]} 33. Kf1 {[%emt 0:00:03]} Rd7 {[%emt 0:00:12]} 34. Ke2 {[%emt 0:00:48]} Kf7 {[%emt 0:00:11]} 35. Kd3 {[%emt 0:00:10]} Rd8 {[%emt 0:00:28]} 36. Kd4 {[%emt 0:00:04]} Rc8 {[%emt 0:00:13]} 37. Kd5 {[%emt 0:00:09]} Rc6 {[%emt 0:00:03]} 38. f3 {[%emt 0:00:50]} Ra6 {[%emt 0:00:17]} 39. a4 {[%emt 0:00:03]} h6 {[%emt 0:00:26]} 40. f4 {[%emt 0:00:09]} Rc6 {[%emt 0:00:03]} 41. b4 {[%emt 0:00:18]} h5 {[%emt 0:00:02]} 42. g4 {[%emt 0:00:08]} hxg4 {[%emt 0:00:02]} 43. hxg4 {[%emt 0:00:00]} a6 {[%emt 0:00:04]} 44. Re4 {[%emt 0:00:06]} Kf6 {[%emt 0:00:07]} 45. Re6+ {[%emt 0:00:09]} Kf7 {[%emt 0:00:03]} 46. Rxd6 {[%emt 0:00:01]} Rc7 {[%emt 0:00:02]} 47. c5 {[%emt 0:00:10]} Re7 {[%emt 0:00:03]} 48. b5 {[%emt 0:00:02]} a5 {[%emt 0:00:06]} 49. c6 {[%emt 0:00:09]} bxc6+ {[%emt 0:00:05]} 50. bxc6 {[%emt 0:00:00]} Re1 {[%emt 0:00:05]} 51. c7 {[%emt 0:00:05]} 1-0

[Event "European Online Club-ch-B 2021"]
[Site "Online"]
[Date "2021.03.27"]
[Round "3.2"]
[White "Solcan, Martin"]
[Black "Hansen, Sune Berg"]
[Result "1/2-1/2"]
[ECO "D78"]
[WhiteElo "2076"]
[BlackElo "2533"]
[Annotator "ChessBase"]
[PlyCount "65"]
[EventDate "2021.03.27"]
[EventType "team-tourn"]
[EventCountry "NET"]
[SourceTitle "playchess.com"]
[Source "ChessBase"]
[SourceQuality "1"]
[TimeControl "900+5"]

1. g3 {[%emt 0:00:00]} d5 {[%emt 0:00:12]} 2. Bg2 {[%emt 0:00:02]} g6 {[%emt 0:00:02]} 3. c4 {[%emt 0:00:10]} dxc4 {[%emt 0:00:09]} 4. Qa4+ {[%emt 0:00:04]} c6 {[%emt 0:00:06]} 5. Qxc4 {[%emt 0:00:02]} Bg7 {[%emt 0:00:05]} 6. Nf3 {[%emt 0:00:08]} Nf6 {[%emt 0:00:31]} 7. d4 {[%emt 0:00:21]} O-O {[%emt 0:00:09]} 8. O-O {[%emt 0:00:03]} Na6 {[%emt 0:00:08]} 9. Nc3 {[%emt 0:00:13]} Bf5 {[%emt 0:01:08]} 10. Ne5 {[%emt 0:01:02]} Qb6 {[%emt 0:01:20]} 11. Na4 {[%emt 0:01:16]} Qb4 {[%emt 0:00:51]} 12. Qxb4 {[%emt 0:02:28]} Nxb4 {[%emt 0:00:03]} 13. Bg5 {[%emt 0:00:11]} Rfd8 {[%emt 0:00:57]} 14. e3 {[%emt 0:00:46]} h6 {[%emt 0:00:21]} 15. Bxf6 {[%emt 0:00:05]} exf6 {[%emt 0:00:01]} 16. Nf3 {[%emt 0:00:14]} Bd3 {[%emt 0:00:39]} 17. Rfc1 {[%emt 0:00:41]} b6 {[%emt 0:01:16]} 18. Ne1 {[%emt 0:00:24]} Ba6 {[%emt 0:00:10]} 19. a3 {[%emt 0:00:06]} Nd5 {[%emt 0:00:03]} 20. Nc3 {[%emt 0:00:42]} Ne7 {[%emt 0:00:17]} 21. b4 {[%emt 0:00:48]} Rac8 {[%emt 0:00:07]} 22. a4 {[%emt 0:00:40]} Bc4 {[%emt 0:00:06]} 23. a5 {[%emt 0:00:42]} b5 {[%emt 0:01:22]} 24. Bf1 {[%emt 0:00:24]} Be6 {[%emt 0:00:05]} 25. Nd3 {[%emt 0:00:03]} f5 {[%emt 0:00:35]} 26. Bg2 {[%emt 0:01:27]} Bf8 {[%emt 0:00:27]} 27. Nc5 {[%emt 0:00:20]} Bc4 {[%emt 0:00:50]} 28. Nb7 {[%emt 0:00:23]} Rd7 {[%emt 0:00:05]} 29. Nc5 {[%emt 0:00:02]} Rd6 {[%emt 0:00:08]} 30. Nb7 {[%emt 0:00:08]} Rd7 {[%emt 0:00:52]} 31. Nc5 {[%emt 0:00:02]} Rdc7 {[%emt 0:00:07]} 32. Na6 {[%emt 0:00:09]} Rd7 {[%emt 0:00:30]} 33. Nc5 {[%emt 0:00:01]} 1/2-1/2

[Event "European Online Club-ch-B 2021"]
[Site "Online"]
[Date "2021.03.27"]
[Round "3.3"]
[White "Engel, Luis"]
[Black "Lecky, Juraj"]
[Result "1-0"]
[ECO "B91"]
[WhiteElo "2553"]
[BlackElo "2070"]
[Annotator "ChessBase"]
[PlyCount "109"]
[EventDate "2021.03.27"]
[EventType "team-tourn"]
[EventCountry "NET"]
[SourceTitle "playchess.com"]
[Source "ChessBase"]
[SourceQuality "1"]
[TimeControl "900+5"]

1. e4 {[%emt 0:00:00]} c5 {[%emt 0:00:03]} 2. Nf3 {[%emt 0:00:05]} d6 {[%emt 0:00:01]} 3. d4 {[%emt 0:00:04]} cxd4 {[%emt 0:00:00]} 4. Nxd4 {[%emt 0:00:01]} Nf6 {[%emt 0:00:01]} 5. Nc3 {[%emt 0:00:03]} a6 {[%emt 0:00:01]} 6. g3 {[%emt 0:00:02]} e5 {[%emt 0:00:12]} 7. Nde2 {[%emt 0:00:02]} b5 {[%emt 0:00:24]} 8. Nd5 {[%emt 0:00:29]} Nxd5 {[%emt 0:03:47]} 9. Qxd5 {[%emt 0:00:06]} Ra7 {[%emt 0:00:02]} 10. Be3 {[%emt 0:00:11]} Bb7 {[%emt 0:00:08]} 11. Qd3 {[%emt 0:00:05]} Ra8 {[%emt 0:00:05]} 12. Bg2 {[%emt 0:00:47]} Nd7 {[%emt 0:00:48]} 13. Nc3 {[%emt 0:00:26]} Qa5 {[%emt 0:01:26]} 14. O-O {[%emt 0:00:58]} Be7 {[%emt 0:01:02]} 15. Nd5 {[%emt 0:01:52]} Bxd5 {[%emt 0:00:45]} 16. Qxd5 {[%emt 0:00:00]} O-O {[%emt 0:00:03]} 17. Bh3 {[%emt 0:02:42]} Nf6 {[%emt 0:02:02]} 18. Qb7 {[%emt 0:00:44]} Rfe8 {[%emt 0:00:02]} 19. c3 {[%emt 0:01:17]} Qa4 {[%emt 0:02:13]} 20. Qc6 {[%emt 0:01:40]} Qc4 {[%emt 0:00:30]} 21. Qxc4 {[%emt 0:00:09]} bxc4 {[%emt 0:00:00]} 22. f3 {[%emt 0:01:02]} Rab8 {[%emt 0:00:21]} 23. Rab1 {[%emt 0:00:31]} d5 {[%emt 0:00:05]} 24. exd5 {[%emt 0:00:48]} Nxd5 {[%emt 0:00:00]} 25. Bf2 {[%emt 0:00:03]} Red8 {[%emt 0:02:45]} 26. Rfe1 {[%emt 0:00:46]} Bf6 {[%emt 0:00:06]} 27. Bf1 {[%emt 0:00:06]} Nb6 {[%emt 0:00:05]} 28. Bxb6 {[%emt 0:00:50]} Rxb6 {[%emt 0:00:00]} 29. Bxc4 {[%emt 0:00:04]} Rd2 {[%emt 0:00:02]} 30. Re2 {[%emt 0:00:12]} Rxe2 {[%emt 0:00:03]} 31. Bxe2 {[%emt 0:00:00]} Rd6 {[%emt 0:00:25]} 32. Rd1 {[%emt 0:00:17]} Rxd1+ {[%emt 0:00:02]} 33. Bxd1 {[%emt 0:00:00]} Kf8 {[%emt 0:00:01]} 34. Kf2 {[%emt 0:00:12]} Ke7 {[%emt 0:00:04]} 35. Ke3 {[%emt 0:00:12]} Bg5+ {[%emt 0:00:03]} 36. Ke4 {[%emt 0:00:09]} Kd6 {[%emt 0:00:06]} 37. b4 {[%emt 0:00:23]} Bd2 {[%emt 0:00:07]} 38. Kd3 {[%emt 0:00:02]} Be1 {[%emt 0:00:02]} 39. Bb3 {[%emt 0:00:09]} f5 {[%emt 0:00:06]} 40. Bc4 {[%emt 0:00:06]} Bf2 {[%emt 0:00:05]} 41. Bxa6 {[%emt 0:00:04]} Bg1 {[%emt 0:00:07]} 42. h3 {[%emt 0:00:02]} g5 {[%emt 0:00:02]} 43. Bc8 {[%emt 0:00:07]} f4 {[%emt 0:00:07]} 44. gxf4 {[%emt 0:00:03]} gxf4 {[%emt 0:00:03]} 45. a4 {[%emt 0:00:02]} Kc7 {[%emt 0:00:05]} 46. Bf5 {[%emt 0:00:02]} h6 {[%emt 0:00:02]} 47. a5 {[%emt 0:00:02]} Kd6 {[%emt 0:00:02]} 48. c4 {[%emt 0:00:03]} Bd4 {[%emt 0:00:02]} 49. c5+ {[%emt 0:00:04]} Kc6 {[%emt 0:00:02]} 50. Kc4 {[%emt 0:00:04]} Kc7 {[%emt 0:00:05]} 51. b5 {[%emt 0:00:01]} Be3 {[%emt 0:00:02]} 52. b6+ {[%emt 0:00:03]} Kb7 {[%emt 0:00:03]} 53. Kb5 {[%emt 0:00:02]} h5 {[%emt 0:00:04]} 54. a6+ {[%emt 0:00:02]} Kb8 {[%emt 0:00:01]} 55. a7+ {[%emt 0:00:01]} 1-0

[Event "European Online Club-ch-B 2021"]
[Site "Online"]
[Date "2021.03.27"]
[Round "3.4"]
[White "Nikel, Rastislav"]
[Black "Kramer, Julian"]
[Result "0-1"]
[ECO "B58"]
[WhiteElo "1984"]
[BlackElo "2419"]
[Annotator "NA"]
[PlyCount "124"]
[EventDate "2021.03.27"]
[EventType "team-tourn"]
[EventCountry "NET"]
[SourceTitle "playchess.com"]
[Source "ChessBase"]
[SourceQuality "1"]
[TimeControl "900+5"]

1. e4 {[%emt 0:00:00]} c5 {[%emt 0:00:03]} 2. Nf3 {[%emt 0:00:03]} d6 {[%emt 0:00:02]} 3. d4 {[%emt 0:00:02]} cxd4 {[%emt 0:00:01]} 4. Nxd4 {[%emt 0:00:03]} Nf6 {[%emt 0:00:02]} 5. Nc3 {[%emt 0:00:01]} Nc6 {[%emt 0:00:01]} 6. Be3 {[%emt 0:00:12]} e5 {[%emt 0:00:06]} 7. Nxc6 {[%emt 0:00:05]} bxc6 {[%emt 0:00:03]} 8. Be2 {[%emt 0:00:05]} Be7 {[%emt 0:00:08]} 9. O-O {[%emt 0:00:03]} O-O {[%emt 0:00:02]} 10. f4 {[%emt 0:00:04]} exf4 {[%emt 0:00:20]} 11. Rxf4 {[%emt 0:00:07]} Be6 {[%emt 0:00:10]} 12. Qd2 {[%emt 0:00:10]} Nd7 {[%emt 0:00:10]} 13. Raf1 {[%emt 0:00:20]} Ne5 {[%emt 0:00:36]} 14. b3 {[%emt 0:00:05]} Bg5 {[%emt 0:00:52]} 15. R4f2 {[%emt 0:00:05]} Bxe3 {[%emt 0:00:17]} 16. Qxe3 {[%emt 0:00:03]} Qb6 {[%emt 0:00:29]} 17. Qg3 {[%emt 0:01:01]} Rfd8 {[%emt 0:00:11]} 18. Kh1 {[%emt 0:00:20]} Qa5 {[%emt 0:00:20]} 19. h4 {[%emt 0:00:23]} h6 {[%emt 0:01:12]} 20. Nd1 {[%emt 0:02:28]} Qb4 {[%emt 0:00:36]} 21. c4 {[%emt 0:00:07]} a5 {[%emt 0:00:13]} 22. Ne3 {[%emt 0:00:07]} Qc3 {[%emt 0:00:06]} 23. Bh5 {[%emt 0:03:31]} a4 {[%emt 0:00:44]} 24. Kh2 {[%emt 0:00:42]} axb3 {[%emt 0:00:29]} 25. axb3 {[%emt 0:00:04]} Qxb3 {[%emt 0:00:20]} 26. c5 {[%emt 0:01:56]} Ra5 {[%emt 0:02:52]} 27. cxd6 {[%emt 0:00:04]} Rxd6 {[%emt 0:00:07]} 28. Bd1 {[%emt 0:01:58]} Rxd1 {[%emt 0:00:33]} 29. Rxd1 {[%emt 0:00:34]} Qxe3 {[%emt 0:00:04]} 30. Rf4 {[%emt 0:01:38]} Qxg3+ {[%emt 0:00:13]} 31. Kxg3 {[%emt 0:00:04]} Ra3+ {[%emt 0:00:01]} 32. Kh2 {[%emt 0:00:10]} h5 {[%emt 0:00:10]} 33. Rd2 {[%emt 0:00:09]} Ng4+ {[%emt 0:00:09]} 34. Kg1 {[%emt 0:00:05]} Ra1+ {[%emt 0:00:05]} 35. Rf1 {[%emt 0:00:04]} Rxf1+ {[%emt 0:00:04]} 36. Kxf1 {[%emt 0:00:02]} c5 {[%emt 0:00:01]} 37. Ke2 {[%emt 0:00:04]} c4 {[%emt 0:00:03]} 38. Rd6 {[%emt 0:00:09]} Kf8 {[%emt 0:00:06]} 39. Rc6 {[%emt 0:00:05]} Ke7 {[%emt 0:00:03]} 40. Kd2 {[%emt 0:00:09]} Ne5 {[%emt 0:00:04]} 41. Ra6 {[%emt 0:00:06]} Kf6 {[%emt 0:00:10]} 42. Kc3 {[%emt 0:00:05]} g5 {[%emt 0:00:09]} 43. hxg5+ {[%emt 0:00:06]} Kxg5 {[%emt 0:00:00]} 44. Kd4 {[%emt 0:00:03]} Ng6 {[%emt 0:00:09]} 45. Ra3 {[%emt 0:00:17]} Kg4 {[%emt 0:00:05]} 46. g3 {[%emt 0:00:09]} Ne7 {[%emt 0:00:17]} 47. Kc5 {[%emt 0:00:09]} Ng8 {[%emt 0:00:08]} 48. Kd6 {[%emt 0:00:05]} Nf6 {[%emt 0:00:05]} 49. Ke5 {[%emt 0:00:04]} Kg5 {[%emt 0:00:02]} 50. Kd4 {[%emt 0:00:09]} Kg4 {[%emt 0:00:08]} 51. Ke5 {[%emt 0:00:03]} Nh7 {[%emt 0:00:02]} 52. Kd4 {[%emt 0:00:23]} Ng5 {[%emt 0:00:03]} 53. e5 {[%emt 0:00:01]} Nf3+ {[%emt 0:00:19]} 54. Ke4 {[%emt 0:00:03]} Nd2+ {[%emt 0:00:03]} 55. Kd4 {[%emt 0:00:10]} Nb3+ {[%emt 0:00:05]} 56. Kc3 {[%emt 0:00:04]} Kxg3 {[%emt 0:00:02]} 57. Ra8 {[%emt 0:00:15]} Kf4 {[%emt 0:00:36]} 58. Rh8 {[%emt 0:00:08]} Kg5 {[%emt 0:00:12]} 59. Rg8+ {[%emt 0:00:04]} Kh6 {[%emt 0:00:07]} 60. Rh8+ {[%emt 0:00:02]} Kg6 {[%emt 0:00:02]} 61. Kb4 {[%emt 0:00:07]} Nd2 {[%emt 0:00:03]} 62. Kc3 {[%emt 0:00:03]} Nf3 {[%emt 0:00:02]} 0-1